Cogmind - Beta 15 @@@ ROGUE MODE // 2025.05.24 @ 20:33:53 Player: Zaros426 Result: Smashed by cave-in Performance ------------- Evolutions (0) 0 Regions Visited (3) 600 Robots Destroyed (42) 210 Value Destroyed (934) 934 Prototype IDs (3) 60 Alien Tech Used (0) 0 Bonus (0) 0 TOTAL SCORE: 1804 Bonus ------- None Cogmind --------- Core Integrity 0/250 Matter 222/300 Energy 187/200 System Corruption 2% Temperature Cool (0) Movement Treading (160) Location -10/Subcaves Parts ------- > --- POWER (1) -------- Subdweller Power Source > --- PROPULSION (2) --- Light Treads Light Treads > --- UTILITY (2) ------ Scrap Shield > --- WEAPON (2) ------- Subdweller Machine Gun > --- INVENTORY (5) ---- Scrap Suit High-capacity Storage Unit Experimental Sensor Array Makeshift System Restoration Module Peak State ------------ > --- POWER ------------ Ion Engine > --- PROPULSION ------- Light Treads Light Treads > --- UTILITY ---------- High-capacity Storage Unit Hacking Suite > --- WEAPON ----------- EM Pulse Gun Subdweller Laser > --- INVENTORY -------- Scrap Suit Heat Sink Large Storage Unit High-capacity Matter Pod Structural Scanner Experimental Sensor Array Improved Terrain Scanner Seismic Detector ECM Suite Scrap Shield Makeshift System Restoration Module Grenade Launcher Grenade Launcher Datajack Mining Laser [Rating: 13] Favorites ----------- Power Ion Engine Engine Ion Engine Propulsion Light Treads Treads Light Treads Utility Large Storage Unit Device Heat Sink Storage Large Storage Unit Hackware Hacking Suite Protection Scrap Shield Weapon EM Pulse Gun Energy Gun EM Pulse Gun Ballistic Gun Subdweller Machine Gun Launcher Grenade Launcher Build | -11 -10 -10 -10 ------- Run | Yrd Mat Min Sub Slots Evolved . | . . . . Power . | . . . . Propulsion . | . . . . Utility . | . . . . Weapon . | . . . . Parts Attached 23 | 6 9 2 6 Power 2 | 1 . . 1 Engine 2 | 1 . . 1 Core . | . . . . Reactor . | . . . . Propulsion 3 | 2 . 1 . Treads 3 | 2 . 1 . Leg . | . . . . Wheel . | . . . . Hover . | . . . . Flight . | . . . . Utility 7 | 1 4 . 2 Device 1 | . 1 . . Storage 3 | 1 1 . 1 Processor . | . . . . Hackware 1 | . 1 . . Protection 2 | . 1 . 1 Artifact . | . . . . Weapon 11 | 2 5 1 3 Energy Gun 8 | 2 3 1 2 Energy Cannon . | . . . . Ballistic Gun 1 | . . . 1 Ballistic Cannon . | . . . . Launcher 2 | . 2 . . Special Weapon . | . . . . Impact Weapon . | . . . . Slashing Weapon . | . . . . Piercing Weapon . | . . . . Special Melee Weapon . | . . . . Unidentified Prototypes . | . . . . Parts Lost 6 | . 1 2 3 Power . | . . . . Propulsion 1 | . . 1 . Utility . | . . . . Weapon 5 | . 1 1 3 Highest Loss Streak 2 | . 1 2 2 To Critical Strikes . | . . . . Average Backups 8 | 1 9 12 5 Power . | . . . . Propulsion . | . . . . Utility 4 | . 3 7 4 Weapon 3 | 1 4 4 . Tool/Special . | . . . . Unused Backups 13 | 1 2 . 10 Power 1 | 1 . . . Propulsion . | . . . . Utility 9 | . 1 . 8 Weapon 2 | . 1 . 1 Tool/Special 1 | . . . 1 Average Slot Usage (%) 95 | . 98 99 85 Engine 14 | . 14 14 14 Treads 27 | . 27 27 28 Storage 10 | . 14 14 1 Hackware 5 | . 3 14 1 Protection 7 | . 7 . 12 Energy Gun 19 | . 26 27 3 Launcher 8 | . 1 . 23 Peak Build Rating 13 | 6 10 12 13 Average Rating 9 | 5 8 10 11 On Entrance 7 | . 6 10 12 Naked Turns . | . . . . Heaviest Build 51 | 13 32 29 51 Greatest Support 40 | 40 40 40 40 Greatest Overweight (x) 1 | . . 1 1 Average Overweight (x) . | . . . . Largest Inventory Capacity 20 | 8 15 15 20 Average Capacity 11 | 7 12 15 6 Most Carried 17 | 4 13 15 17 Average Carried 8 | 2 9 12 6 Final Capacity 15 | 8 15 15 5 Final Carried 15 | 4 13 15 5 Class Distribution -------------------- 100% | Mutant Dominant Class ---------------- Mutant | -10/Materials Mutant | -10/Mines Mutant | -10/Subcaves Resources | -11 -10 -10 -10 ----------- Run | Yrd Mat Min Sub Matter Collected 947 | 260 510 5 172 Remotely . | . . . . Salvage Created 1352 | 199 945 . 208 Parts 72 | 11 48 . 13 Haulers Intercepted 2 | . 2 . . Recyclers Shooed 2 | 1 1 . . Parts Field Recycled . | . . . . Retrieved Matter . | . . . . Parts Self-Destructed 2 | . . . 2 Prevented . | . . . . Kills | -11 -10 -10 -10 ------- Run | Yrd Mat Min Sub Combat Hostiles Destroyed 21 | . 15 . 6 Guns 10 | . 9 . 1 AOE 10 | . 6 . 4 Classes Destroyed 11 | 2 7 . 2 Worker 2 | . 2 . . Builder 2 | . 2 . . Tunneler 6 | 6 . . . Hauler 2 | . 2 . . Recycler 4 | 1 3 . . Operator 2 | . 2 . . Watcher 3 | . 3 . . Swarmer 3 | . 3 . . Grunt 12 | . 12 . . Sentry 1 | . . . 1 Subdweller 5 | . . . 5 Best Kill Streak 6 | 3 6 . 3 Combat Bots Only 3 | . 3 . 3 Max Kills in Single Turn 3 | 1 3 . 2 Gunslinging . | . . . . Exploded 2 | . 1 . 2 Melee . | . . . . Uniques/NPCs Destroyed . | . . . . Combat | -11 -10 -10 -10 -------- Run | Yrd Mat Min Sub Hostile Shots Fired 87 | . 69 . 18 Missed 24 | . 20 . 4 Hits 63 | . 49 . 14 Projectile 63 | . 49 . 14 Critical Strikes 1 | . . . 1 Damage Taken 1329 | . 690 40 599 Core 272 | . 140 . 132 Absorbed by Shields . | . . . . Regen/Repaired (Parts) 128 | . 128 . . Core Remaining (%) 100 | 100 . . . Volleys Fired 110 | 22 67 2 19 Largest 2 | 2 2 2 2 Hottest 100 | 90 90 80 100 Shots Fired 205 | 41 124 4 36 Gun 169 | 41 106 4 18 Cannon . | . . . . Launcher 36 | . 18 . 18 Special . | . . . . Kinetic . | . . . . Thermal 48 | 41 4 . 3 Explosive 36 | . 18 . 18 Electromagnetic 121 | . 102 4 15 Robot Hit Streak 19 | 8 9 3 19 Robot Miss Streak 4 | 3 4 1 1 Penetration Max . | . . . . Secondary Targets 2 | . 2 . . Max Gunslinging Chain 1 | . 1 . . Shots Hit Robots 123 | 27 69 3 24 Core Hits 69 | 8 48 . 13 Critical Kills . | . . . . Critical Parts Destroyed . | . . . . Critical Strikes 3 | 1 2 . . Burn 1 | 1 . . . Corrupt 2 | . 2 . . Melee Attacks . | . . . . Impact . | . . . . Slashing . | . . . . Piercing . | . . . . Sneak Attacks . | . . . . Combat Hostiles . | . . . . Follow-up Attacks . | . . . . Damage Inflicted 2956 | 321 1806 95 734 Guns 1435 | 321 884 40 190 Cannons . | . . . . Explosions 1495 | . 908 43 544 Melee . | . . . . Ramming 26 | . 14 12 . Kinetic . | . . . . Thermal 537 | 321 112 43 61 Explosive 1365 | . 821 . 544 Electromagnetic 1028 | . 859 40 129 Impact . | . . . . Slashing . | . . . . Piercing . | . . . . Highest Corruption . | . . . . Average Corruption . | . . . . Corruption Purged . | . . . . Corruption Blocked . | . . . . Overload Shots . | . . . . Overflow Damage 45 | . 8 37 . Projectiles . | . . . . Explosions 45 | . 8 37 . Melee . | . . . . Knockbacks 1 | . . 1 . Impact 1 | . . 1 . Kinetic . | . . . . Secondary . | . . . . Self-Inflicted Damage 118 | . 78 40 . Shots 4 | . 3 1 . Rammed 5 | . 1 4 . Targets Rammed 5 | . 1 4 . Kicked . | . . . . Crushed . | . . . . Highest Temperature 237 | 130 237 30 . Average Temperature 79 | 57 89 17 . Received Heat Transfer 357 | . 276 . 81 Siege Activations . | . . . . Martial Activations . | . . . . Shielding Activations . | . . . . Robots Disrupted . | . . . . Combat Hostiles . | . . . . Robots Corrupted 1 | . . . 1 Combat Hostiles 1 | . . . 1 Parts Fried 12 | . 11 . 1 Impact Corruptions . | . . . . Robots Melted . | . . . . Combat Hostiles . | . . . . Parts Melted 3 | 3 . . . Heat Transferred 1278 | 929 224 50 75 Parts Sabotaged . | . . . . Parts Stolen . | . . . . Parts Stripped . | . . . . Power Chain Reactions 2 | . 1 1 . Alert | -11 -10 -10 -10 ------- Run | Yrd Mat Min Sub Maximum Alert Level 1 | . 1 . . Low Security (%) 98 | 100 97 100 . Level 1 1 | . 2 . . Level 2 . | . . . . Level 3 . | . . . . Level 4 . | . . . . Level 5 . | . . . . High Security . | . . . . Max Security . | . . . . Peak Influence 221 | 10 221 84 . Initial 84 | . . 84 . Average 52 | 1 84 6 . Influence Increases 794 | 35 735 4 20 Destroy 0b10 Robot/C 320 | . 300 . 20 Destroy 0b10 Robot/NC 105 | 35 70 . . Destroy Leader 80 | . 80 . . Successful Hack 64 | . 64 . . Select Force Hacks 60 | . 60 . . Disable Machine 75 | . 75 . . Destroy Structure 60 | . 56 4 . Lose Combat Pursuer 30 | . 30 . . Influence Decreases 794 | 35 517 222 20 Entered New Map 134 | . . 134 . Time Decay 630 | 35 507 68 20 Lost Part 30 | . 10 20 . Squads Dispatched 5 | . 5 . . Investigation 4 | . 4 . . Extermination . | . . . . Reinforcement 1 | . 1 . . Assault . | . . . . Garrison . | . . . . Intercept . | . . . . Searches Triggered . | . . . . Construction Impeded . | . . . . Haulers Reinforced . | . . . . Active Scanning Responses . | . . . . Cargo Convoy Interrupts . | . . . . Stealth | -11 -10 -10 -10 --------- Run | Yrd Mat Min Sub Distress Signals 1 | . 1 . . Communications Jammed . | . . . . Distress Signals . | . . . . Times Spotted 28 | . 22 . 6 Peak Tracking Total 4 | . 4 . 2 Tactical Retreats 1 | . 1 . . Traps | -11 -10 -10 -10 ------- Run | Yrd Mat Min Sub Traps Triggered 3 | . 3 . . Indirectly . | . . . . Trap Hack Attempts . | . . . . Triggered . | . . . . Disarmed . | . . . . Reprogrammed . | . . . . Reused . | . . . . Traps Extracted . | . . . . Installed . | . . . . Triggered . | . . . . Machines | -11 -10 -10 -10 ---------- Run | Yrd Mat Min Sub Machines Disabled 5 | . 5 . . Max in Single Turn 2 | . 2 . . Machines Repaired . | . . . . Machines Dismantled . | . . . . Machines Sabotaged . | . . . . Overloaded Fab Kills . | . . . . Hacking | -11 -10 -10 -10 --------- Run | Yrd Mat Min Sub Machines Accessed 13 | . 10 . 3 Terminals 7 | . 7 . . Fabricators . | . . . . Repair Stations 1 | . 1 . . Recycling Units 2 | . 2 . . Scanalyzers . | . . . . Garrison Access . | . . . . Total Hacks 30 | . 24 . 6 Successful 20 | . 14 . 6 Failed 10 | . 10 . . Catastrophic 2 | . 2 . . Database Lockouts . | . . . . Manual 18 | . 18 . . Terminals 20 | . 20 . . Fabricators . | . . . . Repair Stations 2 | . 2 . . Recycling Units 2 | . 2 . . Scanalyzers . | . . . . Garrison Access . | . . . . Terminal Hacks 11 | . 5 . 6 Record 5 | . . . 5 Robot Analysis 3 | . 3 . . Prototype ID Bank 1 | . 1 . . Open Door 1 | . . . 1 Assault Status 1 | . 1 . . Fabricator Hacks . | . . . . Repair Station Hacks 2 | . 2 . . Scan Component 1 | . 1 . . Repair 1 | . 1 . . Recycling Unit Hacks . | . . . . Scanalyzer . | . . . . Garrison Access Hacks . | . . . . Unauthorized Hacks 7 | . 7 . . Terminals 5 | . 5 . . Skim 5 | . 5 . . Fabricators . | . . . . Repair Stations . | . . . . Recycling Units 2 | . 2 . . Tunnel 2 | . 2 . . Scanalyzers . | . . . . Garrison Access . | . . . . Data Cores Recovered 1 | . 1 . . Used 1 | . 1 . . Hacking Detections 8 | . 8 . . Full Trace Events . | . . . . Feedback Events . | . . . . Feedback Blocked . | . . . . Robot Schematics Acquired . | . . . . Robots Built . | . . . . Authchips . | . . . . Time . | . . . . Total Robot Build Rating . | . . . . Part Schematics Acquired . | . . . . Parts Built . | . . . . Authchips . | . . . . Time . | . . . . Total Part Build Rating . | . . . . Parts Repaired 1 | . 1 . . Time 26 | . 26 . . Parts Recycled . | . . . . Recycled Matter . | . . . . Retrieved Matter . | . . . . Retrieved Components . | . . . . Parts Scanalyzed . | . . . . Part Schematics Acquired . | . . . . Parts Damaged . | . . . . Bothacking | -11 -10 -10 -10 ------------ Run | Yrd Mat Min Sub Used RIF Installer . | . . . . Robots Hacked . | . . . . Non-combat . | . . . . Combat . | . . . . Robot Hacks Applied . | . . . . Relay Couplers Released . | . . . . Fabnet Peak Effective % . | . . . . Robots Rewired . | . . . . Allies Hacked . | . . . . Hacks Repelled . | . . . . Allies | -11 -10 -10 -10 -------- Run | Yrd Mat Min Sub Total Allies . | . . . . Largest Group . | . . . . Highest-Rated Group . | . . . . Highest-Rated Ally . | . . . . Total Orders . | . . . . Ally Attacks . | . . . . Total Damage . | . . . . Kills . | . . . . Allies Corrupted . | . . . . Allies Melted . | . . . . Intel | -11 -10 -10 -10 ------- Run | Yrd Mat Min Sub Active Infowar (turns) . | . . . . Robot Analysis Total 3 | . 3 . . Derelict Logs Recovered 1 | . . 1 . Drone Launches . | . . . . Drone Recoveries . | . . . . Exploration | -11 -10 -10 -10 ------------- Run | Yrd Mat Min Sub Turns Passed 3781 | 255 1638 819 1069 Spaces Moved 2051 | 114 830 499 608 Core 3 | 3 . . . Treads 2048 | 111 830 499 608 Legs . | . . . . Wheels . | . . . . Hover . | . . . . Flight . | . . . . Fastest Speed 50 | 50 160 160 160 Average Speed 160 | 157 160 160 161 Slowest Speed 240 | 160 160 240 240 Overloaded Moves . | . . . . Propulsion Burnouts . | . . . . Robots Hopped . | . . . . Potential Cave-ins . | . . . . Cave-ins Triggered 1 | . . . 1 Exploration Rate (%) 60 | 7 98 100 36 Regions Visited 3 Branch Regions 2 Pre-discovered Areas 3 | . 2 . 1 Known Exits Taken . | . . . . Unknown Exits Taken 3 | 1 1 1 . Scrap Searched 5 | . . 1 4 Spaces Dug 9 | . 9 . . Terrain Destroyed 165 | . 71 4 90 Melee . | . . . . Projectile . | . . . . AOE 165 | . 71 4 90 Terrain Rammed . | . . . . Walls Destroyed . | . . . . Machines Disabled . | . . . . Actions | -11 -10 -10 -10 --------- Run | Yrd Mat Min Sub Total 2329 | 147 1013 509 660 Wait 91 | . 83 . 8 Move 2048 | 113 829 498 608 Hop . | . . . . Pick Up 28 | 5 14 3 6 Fast Attach 12 | 6 3 . 3 Attach 5 | . 1 2 2 Detach . | . . . . Swap 12 | . 9 . 3 Drop 14 | 1 6 . 7 Fire 110 | 22 67 2 19 Melee . | . . . . Ram . | . . . . Kick . | . . . . Crush 5 | . 1 4 . Escape Stasis . | . . . . Rewire . | . . . . Trap . | . . . . Miscellaneous 4 | . . . 4 Route ------- -11/Scrapyard -10/Materials (discovered 4 exits: *Mat x3 / [*Min]) -10/Mines (discovered 3 exits: *Mat x2 / *Sub) -10/Subcaves (discovered 1 exit: Rec) History --------- Turn | Location | Event 42 | -11/Scrapyard | Discovered new exit (range 16) 256 | -11/Scrapyard | Entered Materials 327 | -10/Materials | Build established: Mutant 722 | -10/Materials | Discovered new exit (range 12) 878 | -10/Materials | Discovered new exit (range 8) 968 | -10/Materials | Discovered new exit (range 16) 1249 | -10/Materials | Discovered new exit (range 6) 1381 | -10/Materials | Learned 4 Subcaves zone layouts 1397 | -10/Materials | Loaded intel: 5 trap records 1401 | -10/Materials | Learned Storage garrison access intel 1402 | -10/Materials | Learned location of 1 exit from Storage 1405 | -10/Materials | Core integrity fell below 50% 1408 | -10/Materials | Learned Storage trap positions 1423 | -10/Materials | Learned Storage stockpile data 1495 | -10/Materials | Repaired Lgt. Treads 1894 | -10/Materials | Entered Mines 1895 | -10/Mines | Identified exit to Materials 2247 | -10/Mines | Found a damaged Exp. Sensor Array with a note attached 2250 | -10/Mines | Found Prototype Device 2399 | -10/Mines | Learned Materials emergency access door positions 2507 | -10/Mines | Found a Scrap Suit stashed away for nefarious purposes 2510 | -10/Mines | Found Scrap Suit 2703 | -10/Mines | Discovered new exit (range 6) 2713 | -10/Mines | Entered Subcaves 2714 | -10/Subcaves | Approached by a straggling Scientist 2714 | -10/Subcaves | Identified exit to Recycling 3230 | -10/Subcaves | A swath of the cavern ceiling suddenly collapsed 3641 | -10/Subcaves | Visited Clippyterm 3645 | -10/Subcaves | Learned location of Deep Caves (-7) 3751 | -10/Subcaves | Ambushed by Subdweller buried in earth 3754 | -10/Subcaves | Ambushed by Subdweller buried in earth 3783 | -10/Subcaves | Crushed by falling debris 3783 | -10/Subcaves | Smashed by cave-in Last Messages --------------- 03752_ GP-GC7(R): "GOODGOOD!" 03752_ The unstable cave ceiling collapses. 03755_ P0-WBM(R): "ARGHSUB!" 03757_ GP-GC7(R) destroyed. 03757_ P0-WBM(R) destroyed. 03760_ The unstable cave ceiling collapses. 03766_ Scrap Shield Fragment affixed to Scrap Shield (+12). 03769_ Scrap Shield Fragment affixed to Scrap Shield (+2). 03773_ The unstable cave ceiling collapses. 03774_ Searching scrap... 03774_ Found Sub. Laser. 03774_ Found Sub. Machine Gun. 03774_ Found 38 Matter. 03775_ Acquired 38 matter. 03778_ Dropped Grenade Launcher. 03778_ Acquired Sub. Machine Gun. 03783_ The unstable cave ceiling collapses. 03783_ Crushed by falling debris. 03783_ Grenade Launcher destroyed. 03783_ System corrupted by crushing effect (+2). Map ----- +----------------------------------------------------+ | ????????????????????????????????????? | | ????????????????????????????????????? | | ????????????????????????????????????? | | ????????????????????????????????????? | | ????????????????????????????????????? | | ????????????????????????????????????? | | ????????????????????????????????????? | | ???????????????###??????????????????? | | ???????????????# ###???????????????? | | ???????????????? ??????????????? | | ???????????????? ????????? ?????? | | ???????????????? ????? ?? #?????? | | ????????????????# ????? # ??????? | | ???????????????## ???? # ???????? | | ???????????????# ##??? #????????? | | ???????????????# #?? #????????? | | ???????????????# #?# #?????????? | | ???????????????# ## #?????????? | | ???????????????# ##????????? | | ???????????##### #????????? | | ???????????# #????????? | | ?????????### # ##????????? | | ?????????#[ ####?????????? | | ?????????# < ##????????????? | | ???????### ] ! #?????????????? | | ???????# @% #?????????????? | | ???????## %! ##?????????????? | | ????????# # #??????????????? | | ????????# # #???????#??????? | | ????????# ## #?????? #??????? | | ????????######### ##????? #??????? | | ????????????????# ##???? #??????? | | ????????????????## #???# #??????? | | ????????????????# #?## ????????? | | ????????????????## ## #?????????? | | ????????????????## # #??????????? | | ????????????????#" # #???????????? | | ????????????????#"" # ##???????????? | | ????????????????##""# #???????????? | | ?????????????????# "" ###??????????? | | ?????????????????# #" ##?????????? | | ?????????????????# "" #?###?????? | | ???????????????# "" " ### #?????? | | ??????????????# "####"" #?????? | | ??????????????# ""#??### ##????? | | ??????????????# "??????## ##???? | | ??????????????# ????????##" #??? | | ??????????????#? "?????????## #?? | | ???????????????? ??????????## #? | | ?????????????????####???#### ## | +----------------------------------------------------+ Best States ------------- Heat Dissipation 35 Energy Generation 10 Energy Capacity 250 Matter Stores 300 Matter Capacity 300 Sight Range 16 Terrain Scan Density 10 Armor Coverage 800 Evasion (%) 40 Recoil Reduction 2 Offensive Hacking 10 Item Schematics ----------------- None Robot Schematics ------------------ None Fabricated ------------ Nothing Repaired ---------- Lgt. Treads | 8% | -10/Materials Alien Tech Used ----------------- None Achievements -------------- None Challenges ------------ None Game ------ Seed SystemMetaMapper Manual? 0 Play Time 00:20:52 Cumulative 265.9 hours Start 2025.05.24 @ 20:14:12 End 2025.05.24 @ 20:33:53 Sessions 1 Manual Loads 0 Difficulty Rogue Special Mode None Game No. 126 Rogue 126 Adventurer 0 Explorer 0 Win Type - Total 1 Types 0/0/0/0/1/0/0/0/0/0 Lore% 65 Gallery% 73 Achievement% 64 Wizard Run 0 Options --------- Layout 0 ASCII 0 Keyboard 0 Movement Mouse Keybinds 0 Fullscreen 1 Font 24/Smallcaps Map View 183x50 Zoom Use 0% Tactical HUD 1 Map Filters NONE Filters NONE Steam 0 RUN: 6462ebac-5b57-4040-9edd-5e84d29861a3